Cogmind - Beta 13 @@@ ROGUE MODE // 2024.07.16 @ 14:32:46 Player: Sgt. SmokeWeed Result: Destroyed by exploding Nuclear Reactor Performance ------------- Evolutions (1) 500 Regions Visited (3) 600 Robots Destroyed (42) 210 Value Destroyed (1184) 1184 Prototype IDs (2) 40 Alien Tech Used (0) 0 Bonus (19) 19 TOTAL SCORE: 2553 Bonus ------- High Alert Combat Kills 19 Cogmind --------- Core Integrity 0/400 Matter 300/300 Energy 100/100 System Corruption 0% Temperature Cool (0) Movement Core (50) Location -9/Materials Parts ------- > --- POWER (1) -------- (None) > --- PROPULSION (2) --- (None) > --- UTILITY (2) ------ Hacking Suite > --- WEAPON (4) ------- Scythe > --- INVENTORY (5) ---- Rocket Launcher Peak State ------------ > --- POWER ------------ Improved Ion Engine > --- PROPULSION ------- Wheel Wheel > --- UTILITY ---------- Hacking Suite > --- WEAPON ----------- Beam Rifle Scythe > --- INVENTORY -------- Rocket Launcher [Rating: 12] Favorites ----------- Power Light Ion Engine Engine Light Ion Engine Propulsion Aluminum Leg Treads Light Treads Leg Aluminum Leg Wheel Wheel Utility Hacking Suite Hackware Hacking Suite Weapon Scythe Energy Gun Beam Rifle Ballistic Gun Assault Rifle Launcher Rocket Launcher Slashing Weapon Scythe Build | -11 -10 -10 -9 ------- Run | Yrd Mat Min Mat Slots Evolved 2 | . . . 2 Power . | . . . . Propulsion . | . . . . Utility . | . . . . Weapon 2 | . . . 2 Parts Attached 27 | 5 1 5 16 Power 3 | 1 . 1 1 Engine 3 | 1 . 1 1 Core . | . . . . Reactor . | . . . . Propulsion 8 | 2 . 2 4 Treads 2 | . . . 2 Leg 4 | 2 . 2 . Wheel 2 | . . . 2 Hover . | . . . . Flight . | . . . . Utility 1 | . . . 1 Device . | . . . . Storage . | . . . . Processor . | . . . . Hackware 1 | . . . 1 Protection . | . . . . Artifact . | . . . . Weapon 15 | 2 1 2 10 Energy Gun 2 | . . . 2 Energy Cannon . | . . . . Ballistic Gun 6 | 2 . . 4 Ballistic Cannon . | . . . . Launcher 5 | . 1 2 2 Special Weapon . | . . . . Impact Weapon . | . . . . Slashing Weapon 2 | . . . 2 Piercing Weapon . | . . . . Special Melee Weapon . | . . . . Unidentified Prototypes 2 | . . . 2 Parts Lost 14 | . . 3 11 Power 2 | . . . 2 Propulsion 4 | . . 1 3 Utility . | . . . . Weapon 8 | . . 2 6 Highest Loss Streak 4 | . . 3 4 To Critical Strikes . | . . . . Average Slot Usage (%) 56 | . 71 70 46 Engine 9 | . 14 14 6 Treads 4 | . . . 7 Leg 11 | . 28 28 1 Wheel 1 | . . . 3 Energy Gun 3 | . . . 5 Ballistic Gun 9 | . 16 13 7 Launcher 8 | . 11 14 4 Slashing Weapon 6 | . . . 10 Naked Turns 18 | . . . 18 Heaviest Build 13 | 6 8 12 13 Greatest Support 40 | 20 20 20 40 Greatest Overweight (x) 4 | 1 . . 4 Average Overweight (x) . | . . . . Largest Inventory Capacity 5 | 5 5 5 5 Average Capacity 5 | 5 5 5 5 Most Carried 3 | . . 3 1 Average Carried . | . . . . Final Capacity 5 | 5 5 5 5 Final Carried 1 | . . . 1 Class Distribution -------------------- 55% | Mutant 28% | Scavenger-Mutant 11% | Gunner 4% | Bomber Dominant Class ---------------- Mutant | -10/Materials Mutant | -10/Mines Scavenger-Mutant | -9/Materials Resources | -11 -10 -10 -9 ----------- Run | Yrd Mat Min Mat Matter Collected 863 | 154 27 187 495 Remotely . | . . . . Salvage Created 1155 | . 58 358 739 Parts 60 | . 4 19 37 Haulers Intercepted . | . . . . Recyclers Shooed 1 | . . . 1 Parts Field Recycled . | . . . . Retrieved Matter . | . . . . Parts Self-Destructed . | . . . . Prevented . | . . . . Kills | -11 -10 -10 -9 ------- Run | Yrd Mat Min Mat Combat Hostiles Destroyed 31 | . 2 12 17 Melee 8 | . . . 8 Guns 8 | . 1 4 3 AOE 15 | . 1 8 6 Classes Destroyed 10 | . 3 2 5 Worker 2 | . 1 . 1 Builder 2 | . . 1 1 Tunneler 4 | . 1 3 . Recycler 2 | . . . 2 Operator 1 | . . . 1 Watcher 1 | . . . 1 Swarmer 3 | . . . 3 Grunt 24 | . 2 11 11 Sentry 3 | . . . 3 Assembled 1 | . . 1 . Best Kill Streak 6 | . 4 6 6 Combat Bots Only 6 | . 2 4 6 Max Kills in Single Turn 4 | . 2 2 4 Gunslinging . | . . . . Exploded 3 | . 1 1 3 Melee 1 | . . . 1 Uniques/NPCs Destroyed . | . . . . Combat | -11 -10 -10 -9 -------- Run | Yrd Mat Min Mat Hostile Shots Fired 166 | . 9 43 114 Missed 54 | . 2 12 40 Damage Taken 1723 | . 110 445 1168 Core 500 | . 15 80 405 Absorbed by Shields . | . . . . Core Remaining (%) 81 | 100 . 62 . Volleys Fired 76 | . 9 24 43 Largest 3 | . 2 2 3 Hottest 86 | . 50 53 86 Shots Fired 111 | . 17 36 58 Gun 80 | . 11 21 48 Cannon . | . . . . Launcher 31 | . 6 15 10 Special . | . . . . Kinetic 53 | . 11 21 21 Thermal 27 | . . . 27 Explosive 31 | . 6 15 10 Electromagnetic . | . . . . Robot Hit Streak 7 | . 4 5 7 Robot Miss Streak 8 | . 7 4 8 Penetration Max . | . . . . Secondary Targets . | . . . . Shots Hit Robots 81 | . 7 22 52 Core Hits 60 | . 8 27 25 Critical Kills 1 | . 1 . . Critical Parts Destroyed . | . . . . Critical Strikes 7 | . 1 . 6 Burn 1 | . . . 1 Destroy 1 | . 1 . . Sever 5 | . . . 5 Melee Attacks 38 | . . . 38 Impact . | . . . . Slashing 38 | . . . 38 Piercing . | . . . . Sneak Attacks 6 | . . . 6 Combat Hostiles . | . . . . Follow-up Attacks . | . . . . Damage Inflicted 3582 | . 211 1177 2194 Guns 590 | . 45 197 348 Cannons . | . . . . Explosions 1813 | . 162 980 671 Melee 1168 | . . . 1168 Ramming 11 | . 4 . 7 Kinetic 345 | . 45 197 103 Thermal 536 | . . . 536 Explosive 1522 | . 162 980 380 Electromagnetic . | . . . . Impact . | . . . . Slashing 1168 | . . . 1168 Piercing . | . . . . Highest Corruption . | . . . . Average Corruption . | . . . . Corruption Purged . | . . . . Corruption Blocked . | . . . . Overload Shots . | . . . . Overflow Damage 164 | . . 28 136 Projectiles . | . . . . Explosions 58 | . . 28 30 Melee 106 | . . . 106 Knockbacks . | . . . . Impact . | . . . . Kinetic . | . . . . Secondary . | . . . . Self-Inflicted Damage 181 | . 30 81 70 Shots 8 | . 1 4 3 Rammed 2 | . . . 2 Targets Rammed 4 | . 2 . 2 Kicked 2 | . 2 . . Crushed . | . . . . Highest Temperature 161 | . 8 12 161 Average Temperature 40 | . 4 4 53 Received Heat Transfer 570 | . 42 201 327 Siege Activations . | . . . . Robots Corrupted . | . . . . Combat Hostiles . | . . . . Parts Fried . | . . . . Impact Corruptions . | . . . . Robots Melted . | . . . . Combat Hostiles . | . . . . Parts Melted 1 | . . . 1 Heat Transferred 866 | . . . 866 Parts Sabotaged . | . . . . Parts Stolen . | . . . . Parts Stripped . | . . . . Power Chain Reactions . | . . . . Alert | -11 -10 -10 -9 ------- Run | Yrd Mat Min Mat Peak Influence 439 | . 131 336 439 Initial 126 | . . 51 126 Average 211 | . 42 110 295 Maximum Alert Level 2 | . . 1 2 Low Security (%) 42 | 100 100 77 14 Level 1 44 | . . 22 64 Level 2 12 | . . . 21 Level 3 . | . . . . Level 4 . | . . . . Level 5 . | . . . . High Security . | . . . . Max Security . | . . . . Squads Dispatched 5 | . 1 . 4 Investigation 1 | . . . 1 Extermination . | . . . . Reinforcement 4 | . 1 . 3 Assault . | . . . . Garrison . | . . . . Intercept . | . . . . Searches Triggered . | . . . . Construction Impeded . | . . . . Haulers Reinforced . | . . . . Active Scanning Responses . | . . . . Cargo Convoy Interrupts . | . . . . Stealth | -11 -10 -10 -9 --------- Run | Yrd Mat Min Mat Distress Signals 3 | . . 1 2 Communications Jammed . | . . . . Distress Signals . | . . . . Times Spotted 52 | . 5 13 34 Peak Tracking Total 5 | . 3 3 5 Tactical Retreats 3 | . . . 3 Traps | -11 -10 -10 -9 ------- Run | Yrd Mat Min Mat Traps Triggered 1 | . . . 1 Indirectly . | . . . . Trap Hack Attempts . | . . . . Triggered . | . . . . Disarmed . | . . . . Reprogrammed . | . . . . Reused . | . . . . Traps Extracted . | . . . . Installed . | . . . . Triggered . | . . . . Machines | -11 -10 -10 -9 ---------- Run | Yrd Mat Min Mat Machines Disabled 9 | . 2 4 3 Max in Single Turn 3 | . 2 3 1 Machines Repaired . | . . . . Machines Dismantled . | . . . . Machines Sabotaged . | . . . . Overloaded Fab Kills . | . . . . Hacking | -11 -10 -10 -9 --------- Run | Yrd Mat Min Mat Machines Accessed 3 | . 1 . 2 Terminals 3 | . 1 . 2 Fabricators . | . . . . Repair Stations . | . . . . Recycling Units . | . . . . Scanalyzers . | . . . . Garrison Access . | . . . . Total Hacks 6 | . 1 . 5 Successful . | . . . . Failed 6 | . 1 . 5 Catastrophic 4 | . 1 . 3 Database Lockouts . | . . . . Manual 6 | . 1 . 5 Terminals 6 | . 1 . 5 Fabricators . | . . . . Repair Stations . | . . . . Recycling Units . | . . . . Scanalyzers . | . . . . Garrison Access . | . . . . Terminal Hacks . | . . . . Fabricator Hacks . | . . . . Repair Station Hacks . | . . . . Recycling Unit Hacks . | . . . . Scanalyzer . | . . . . Garrison Access Hacks . | . . . . Unauthorized Hacks . | . . . . Terminals . | . . . . Fabricators . | . . . . Repair Stations . | . . . . Recycling Units . | . . . . Scanalyzers . | . . . . Garrison Access . | . . . . Data Cores Recovered . | . . . . Used . | . . . . Hacking Detections 3 | . 1 . 2 Full Trace Events . | . . . . Feedback Events . | . . . . Feedback Blocked . | . . . . Robot Schematics Acquired . | . . . . Robots Built . | . . . . Authchips . | . . . . Time . | . . . . Total Robot Build Rating . | . . . . Part Schematics Acquired . | . . . . Parts Built . | . . . . Authchips . | . . . . Time . | . . . . Total Part Build Rating . | . . . . Parts Repaired . | . . . . Time . | . . . . Parts Recycled . | . . . . Recycled Matter . | . . . . Retrieved Matter . | . . . . Retrieved Components . | . . . . Parts Scanalyzed . | . . . . Part Schematics Acquired . | . . . . Parts Damaged . | . . . . Bothacking | -11 -10 -10 -9 ------------ Run | Yrd Mat Min Mat Used RIF Installer . | . . . . Robots Hacked . | . . . . Non-combat . | . . . . Combat . | . . . . Robot Hacks Applied . | . . . . Relay Couplers Released . | . . . . Fabnet Peak Effective % . | . . . . Robots Rewired . | . . . . Allies Hacked . | . . . . Hacks Repelled . | . . . . Allies | -11 -10 -10 -9 -------- Run | Yrd Mat Min Mat Total Allies . | . . . . Largest Group . | . . . . Highest-Rated Group . | . . . . Highest-Rated Ally . | . . . . Total Orders . | . . . . Ally Attacks . | . . . . Total Damage . | . . . . Kills . | . . . . Allies Corrupted . | . . . . Allies Melted . | . . . . Intel | -11 -10 -10 -9 ------- Run | Yrd Mat Min Mat Robot Analysis Total . | . . . . Derelict Logs Recovered 2 | . . 2 . Drone Launches . | . . . . Drone Recoveries . | . . . . Exploration | -11 -10 -10 -9 ------------- Run | Yrd Mat Min Mat Turns Passed 2038 | 43 159 634 1202 Spaces Moved 1231 | 34 108 300 789 Core 363 | 10 . . 353 Treads 205 | . . . 205 Legs 510 | 24 108 300 78 Wheels 153 | . . . 153 Hover . | . . . . Flight . | . . . . Fastest Speed 50 | 50 120 120 50 Average Speed 121 | 106 120 120 122 Slowest Speed 250 | 120 120 120 250 Overloaded Moves . | . . . . Propulsion Burnouts . | . . . . Robots Hopped . | . . . . Cave-ins Triggered . | . . . . Exploration Rate (%) 34 | 2 27 56 54 Regions Visited 3 Branch Regions 1 Pre-discovered Areas 2 | . . 2 . Known Exits Taken . | . . . . Unknown Exits Taken 3 | 1 1 1 . Scrap Searched . | . . . . Spaces Dug . | . . . . Terrain Destroyed 275 | . 25 134 116 Melee . | . . . . Projectile . | . . . . AOE 275 | . 25 134 116 Terrain Rammed . | . . . . Walls Destroyed . | . . . . Machines Disabled . | . . . . Actions | -11 -10 -10 -9 --------- Run | Yrd Mat Min Mat Total 1608 | 38 120 537 913 Wait 224 | . . 206 18 Move 1228 | 33 107 299 789 Hop . | . . . . Pick Up 1 | . . . 1 Fast Attach 21 | 5 1 . 15 Attach 1 | . . 1 . Detach . | . . . . Swap 5 | . . 4 1 Drop 10 | . 1 3 6 Fire 76 | . 9 24 43 Melee 38 | . . . 38 Ram 2 | . . . 2 Kick 2 | . 2 . . Crush . | . . . . Escape Stasis . | . . . . Rewire . | . . . . Trap . | . . . . Miscellaneous . | . . . . Route ------- -11/Scrapyard -10/Materials -10/Mines -9/Materials (discovered 2 exits: [*Mat] / [*Min]) History --------- Turn | Location | Event 11 | -11/Scrapyard | Discovered new exit (range 16) 44 | -11/Scrapyard | Entered Materials 161 | -10/Materials | Discovered new exit (range 10) 203 | -10/Materials | Entered Mines 210 | -10/Mines | Received a Rocket Launcher from a helpful Derelict 249 | -10/Mines | Learned location of Recycling (-9) 265 | -10/Mines | Learned location of Mines (-9) 283 | -10/Mines | Excavation squad dispatched 283 | -10/Mines | A large section of the Mines collapsed 303 | -10/Mines | Build established: Mutant 533 | -10/Mines | Excavation squad dispatched 773 | -10/Mines | Found a hidden stash of uninstalled traps 783 | -10/Mines | Excavation squad dispatched 820 | -10/Mines | Discovered new exit (range 10) 837 | -10/Mines | Entered Materials 837 | -9/Materials | Evolved 2 slots: Weapon x2 861 | -9/Materials | Lost 3 parts (1n2w) 1026 | -9/Materials | Lost 4 parts (1p1n2w) 1393 | -9/Materials | Discovered new exit (range 15) 1451 | -9/Materials | Core integrity fell below 50% 1763 | -9/Materials | Build established: Scavenger-Mutant 1929 | -9/Materials | Discovered new exit (range 7) 2038 | -9/Materials | Core integrity fell below 20% 2039 | -9/Materials | Destroyed by exploding Nuclear Reactor Last Messages --------------- Acquired Hvy. Assault Rifle. K-01 Serf collects debris. Acquired 10 matter. R-06 Scavenger collects Lgt. Treads. R-06 Scavenger collects Imp. Ion Engine. ALERT: Hostiles spotted, dispatching reinforcements to Terminal M005. Nuclear Reactor explodes. Y-45 Defender destroyed. K-01 Serf collects debris. Acquired 15 matter. K-01 Serf collects debris. S-10 Pest destroyed. Wheel destroyed. S-10 Pest suffers critical hit (Burn). Nuclear Reactor explodes. T-07 Excavator destroyed. Nuclear Reactor explodes. S-10 Pest destroyed. Imp. Ion Engine destroyed. Hvy. Assault Rifle destroyed. Map ----- +----------------------------------------------------+ | ?????????????????????????????????????????????????? | | ?????????????????????????????????????????????????? | | ?????????????????????????????????????????????????? | | ?????????????????????????????????????????????????? | | ?????????????????????????????????????????????????? | | ?????????????????????????????????????????????????? | | ?????????????????????????????????????????????????? | | ?????????????????????????????????????????????????? | | ????????????????????????????????????????????###### | | ????????????????????????????????????????????# | | ????????????????????????????????????????????# | | ????????????????????????????????????????????# | | ????????????????????????????????????????????# """" | | ????????????????????????????????????????????# """" | | ????????????????????????????????????????????# """" | | ????????????????????????????????????????????###### | | ???????????????????????????????????????????????### | | ?????????????#########+######+######+########### | | ????????????? | | ?????????????? | | ??????????????? | | ???????????????""" """ """ """ """ | | ?????????????? """ """s """ """ """ | | ????????????# """ """ """ """ """ | | ????????????# * Y s | | ????????????# @ =%[ | | ????????????# ##### #s#############+#### | | ????????????????????# o ???????# # | | ???????????????????# ####s """ ????# # | | ???????????????????# #??#! """?????# # | | ???????????????????# #??# %*""" "???# """ # | | ???????????????????# #??# = ??# """ # | | ???????????????????#[ #?? ????# """ # | | ???????????????????# #??# ????# # | | ???????????????????####+##???######+#????######### | | ?????????????????????????????????????????????????? | | ?????????????????????????????????????????????????? | | ?????????????????????????????????????????????????? | | ?????????????????????????????????????????????????? | | ?????????????????????????????????????????????????? | | ?????????????????????????????????????????????????? | | ?????????????????????????????????????????????????? | | ?????????????????????????????????????????????????? | | ?????????????????????????????????????????????????? | | ?????????????????????????????????????????????????? | | ?????????????????????????????????????????????????? | | ?????????????????????????????????????????????????? | | ?????????????????????????????????????????????????? | | ?????????????????????????????????????????????????? | | ?????????????????????????????????????????????????? | +----------------------------------------------------+ Best States ------------- Heat Dissipation 28 Energy Generation 12 Energy Capacity 265 Matter Stores 300 Matter Capacity 300 Sight Range 16 Terrain Scan Density 10 Evasion (%) 55 Recoil Reduction 2 Offensive Hacking 10 Item Schematics ----------------- None Robot Schematics ------------------ None Fabricated ------------ Nothing Alien Tech Used ----------------- None Achievements -------------- None Challenges ------------ None Game ------ Seed SalvageCobblerFalx Manual? 0 Play Time 00:14:17 Cumulative 35.7 hours Start 2024.07.16 @ 14:18:57 End 2024.07.16 @ 14:32:46 Sessions 1 Manual Loads 0 Difficulty Rogue Special Mode None Game No. 81 Rogue 15 Adventurer 66 Explorer 0 Win Type - Total 0 Types 0/0/0/0/0/0/0/0/0 Lore% 27 Gallery% 31 Achievement% 29 Wizard Run 0 Options --------- Layout 0 ASCII 0 Keyboard 0 Movement Mouse Keybinds 0 Fullscreen 1 Font 24/Smallcaps Map View 76x50 Zoom Use 0% Tactical HUD 0 Map Filters NONE Filters NONE Steam 1 RUN: 620dde98-1a50-429b-80e4-410fe0cbb07b